bitfinex/quotes_ETHUSD_20260106
["timestamp","ask_amount","ask_price","bid_price","bid_amount"]
[1767733613369,0.24394829,3236.5,3234.9,0.92074691]
[1767733613572,0.24394829,3236.3,3234.9,0.92074691]
[1767733614366,3.09004387,3236.2,3235.1,0.92074691]
[1767733614548,3.89998316,3236.3,3235.1,0.92074691]
[1767733614972,0.25715259,3236.8,3235.1,0.92074691]
[1767733614973,3.08989698,3236.4,3235.1,0.92074691]
[1767733615171,0.81,3236.4,3235.1,0.92074691]
[1767733615376,0.81,3236.4,3235.3,0.92074691]
[1767733615568,3.08957825,3236.7,3235.3,0.92074691]
[1767733615775,3.89957825,3236.7,3235.3,0.92074691]
[1767733616638,3.89957825,3236.7,3235.5,0.92074691]
[1767733617254,6.9891565,3236.7,3235.5,0.92074691]
[1767733617559,0.69891565,3236.6,3235.5,0.92074691]
[1767733618782,0.002,3236.9,3235.7,0.92074691]
[1767733620849,0.002,3236.9,3235.9,0.92074691]
[1767733621248,0.002,3236.9,3235.9,1.01438279]
[1767733622283,0.002,3236.9,3235.9,0.92074691]
[1767733622846,0.002,3236.9,3236.0,1.07639777]
[1767733624751,0.40625311,3236.9,3235.7,1.02978313]
[1767733625356,0.41561469,3236.7,3235.5,3.09070875]
[1767733625559,0.65945568,3236.6,3235.5,3.09070875]
[1767733625974,0.65945568,3236.6,3235.5,4.12049188]
[1767733626148,0.66145568,3236.6,3235.5,4.12049188]
[1767733626349,3.08975745,3236.5,3235.5,4.1172504]
[1767733626651,3.75113815,3236.6,3235.6,1.02978313]
[1767733626851,0.41667528,3236.5,3235.6,1.02978313]
[1767733628985,3.08985292,3236.4,3235.6,1.02978313]
[1767733629292,6.17970584,3236.4,3235.6,1.02978313]
[1767733630454,0.47047986,3236.3,3235.3,1.02978313]
[1767733630678,0.74601857,3236.2,3235.3,1.02978313]
[1767733631301,6.18027872,3236.1,3235.3,1.02978313]
[1767733633689,3.09013936,3236.1,3235.3,1.02978313]
[1767733633902,0.74601857,3236.2,3235.4,1.02978313]
[1767733634067,0.41667528,3236.5,3235.4,1.02978313]
[1767733634068,0.81,3236.5,3235.4,1.02978313]
[1767733634391,0.81,3236.5,3235.6,1.02978313]
[1767733634695,3.89975745,3236.5,3235.6,1.02978313]
[1767733635695,6.9895149,3236.5,3235.7,1.02978313]
[1767733636298,3.89975745,3236.5,3235.7,1.02978313]
[1767733637162,4.44190851,3236.5,3235.3,1.02978313]
[1767733637359,0.44439085,3236.4,3235.3,1.02978313]
[1767733637563,0.44439085,3236.4,3235.5,1.02978313]
[1767733637895,3.08994839,3236.3,3235.6,1.02978313]
[1767733638670,6.17989678,3236.3,3235.6,1.02978313]
[1767733640069,3.08994839,3236.3,3235.6,1.02978313]
[1767733640281,0.35343392,3236.2,3235.6,1.02978313]
[1767733640783,0.35343392,3236.2,3235.7,1.02978313]
[1767733642202,3.44349668,3236.2,3235.7,1.02978313]
[1767733642408,0.35343392,3236.2,3235.7,1.02978313]
[1767733643507,3.89985325,3236.4,3235.7,1.02978313]
[1767733646002,3.08985325,3236.4,3235.7,1.02978313]
[1767733646712,6.17960642,3236.5,3235.7,1.02978313]
[1767733647379,3.08976723,3236.5,3235.7,1.02978313]
[1767733647581,6.17960642,3236.5,3235.7,1.02978313]
[1767733647792,0.61816064,3236.4,3235.7,1.02978313]
[1767733648711,3.70802572,3236.4,3235.8,1.02978313]
[1767733649514,3.70804999,3236.4,3235.8,1.02978313]
[1767733649808,0.61816064,3236.4,3235.8,1.02978313]
[1767733650007,0.002,3236.6,3235.8,1.02978313]
[1767733650209,0.002,3236.1,3235.8,1.02978313]
[1767733650414,0.002,3236.4,3235.8,1.02978313]
[1767733650712,0.002,3236.9,3236.6,1.02978313]
[1767733650886,0.002,3236.9,3236.6,1.0061968]
[1767733651584,0.002,3236.9,3236.7,1.17344172]
[1767733656586,0.002,3236.9,3236.3,3.08988336]
[1767733656810,0.002,3236.9,3236.4,1.17344172]
[1767733657515,0.002,3236.9,3236.1,1.98344172]
[1767733657822,0.75726465,3236.9,3236.1,5.07356871]
[1767733657998,0.75726465,3236.9,3236.2,1.17344172]
[1767733658716,0.002,3236.9,3236.2,1.17344172]
[1767733660494,0.002,3236.9,3236.2,4.26348494]
[1767733661296,0.002,3236.9,3236.2,4.26188727]
[1767733661922,0.002,3236.9,3236.3,1.17344172]
[1767733662921,0.002,3236.9,3236.5,0.001]
[1767733663128,0.59318832,3236.9,3236.5,0.001]
[1767733663298,0.002,3236.6,3236.5,0.001]
[1767733665395,0.002,3237.2,3236.7,1.17344172]
[1767733666106,3.09111325,3237.2,3236.7,1.17344172]
[1767733666306,3.89947048,3237.2,3236.5,0.001]
[1767733666897,7.68743329,3237.2,3236.5,0.001]
[1767733667100,0.81302285,3237.1,3236.5,0.001]
[1767733667301,0.81302285,3236.9,3236.0,1.17344172]
[1767733669327,0.82222616,3236.7,3235.8,1.17344172]
[1767733669526,0.82222616,3236.5,3235.6,1.17344172]
[1767733669822,0.82222616,3236.5,3235.6,4.26405006]
[1767733670125,0.61789422,3236.7,3235.9,1.17344172]
[1767733670430,7.00552907,3236.9,3235.9,1.17344172]
[1767733671629,7.00552907,3236.9,3236.0,1.17344172]
[1767733674210,0.84426647,3236.8,3236.0,1.17344172]
[1767733676101,3.08956653,3236.7,3236.0,1.17344172]
[1767733676303,3.79189757,3236.7,3236.2,0.001]
[1767733676504,0.002,3236.6,3236.2,0.001]
[1767733678626,0.86705075,3236.6,3236.2,0.001]
[1767733680339,3.09171523,3236.6,3236.2,0.001]
[1767733681207,3.09166974,3236.6,3236.2,0.001]
[1767733681404,0.46709298,3236.5,3236.2,0.001]
[1767733682510,3.08985292,3236.4,3236.2,0.001]
[1767733683712,3.55688924,3236.5,3236.2,0.001]
[1767733685035,0.46709298,3236.5,3236.2,0.001]
[1767733685240,7.07539299,3236.5,3235.8,1.32868849]
[1767733686744,3.9856122,3236.5,3235.8,1.32868849]
[1767733688970,3.98565981,3236.5,3236.1,0.001]
[1767733690122,7.07546487,3236.5,3236.1,0.001]
[1767733690426,0.70774649,3236.4,3236.1,0.001]
[1767733690616,0.70774649,3236.4,3235.8,1.32868849]
[1767733691340,3.79761526,3236.4,3235.8,1.32868849]
[1767733691726,3.79761526,3236.4,3235.8,1.32668849]
[1767733695538,3.08986877,3236.4,3235.8,1.32668849]
[1767733696925,4.02891964,3236.4,3235.8,1.32668849]
[1767733698934,0.93905087,3236.4,3235.8,1.32668849]
[1767733699254,7.12681521,3236.6,3235.8,1.32668849]
[1767733700668,7.12681521,3236.6,3236.1,0.001]
[1767733700870,0.95048635,3236.4,3235.6,1.32868849]
[1767733701030,0.002,3236.2,3235.6,1.32868849]
[1767733701761,0.95553971,3236.2,3235.6,1.32868849]
[1767733702068,0.95553971,3236.2,3235.4,1.32868849]
[1767733702578,3.09013936,3236.1,3235.4,1.32868849]
[1767733702774,3.80371339,3236.1,3235.4,1.32868849]
[1767733707284,6.89385275,3236.1,3235.4,1.32868849]
[1767733707586,7.86513232,3236.1,3235.4,1.32868849]
[1767733710965,1.79241781,3236.0,3235.4,1.32868849]
[1767733711464,1.2475373,3235.9,3234.7,3.09143143]
[1767733711675,1.2475373,3235.7,3234.9,1.38085204]
[1767733711874,1.2475373,3235.7,3235.0,1.38085204]
[1767733712399,3.09061688,3235.6,3235.0,1.38085204]
[1767733712700,1.2475373,3235.9,3235.1,1.38085204]
[1767733712903,3.09027812,3236.0,3235.1,1.38085204]
[1767733713076,3.09205663,3236.2,3235.3,1.38085204]
[1767733713275,1.2475373,3236.1,3235.3,1.38085204]
[1767733714897,3.09023485,3236.0,3235.3,1.38085204]
[1767733715903,6.1804697,3236.0,3235.3,1.38085204]
[1767733716709,3.09023485,3236.0,3235.3,1.38085204]
[1767733717006,0.002,3236.2,3235.3,1.38085204]
[1767733717302,1.2475373,3236.1,3235.3,1.38085204]
[1767733719114,3.09023485,3236.0,3235.3,1.38085204]
[1767733721215,3.09018838,3236.1,3235.4,1.38085204]
[1767733721409,3.0920939,3236.2,3235.4,1.38085204]
[1767733722604,1.2475373,3236.1,3235.1,1.38185204]
[1767733722804,1.2475373,3236.0,3235.1,0.001]
[1767733723009,1.2475373,3235.8,3235.1,0.001]
[1767733723409,4.33805867,3235.7,3235.1,0.001]
[1767733724006,1.2475373,3235.7,3235.1,0.001]
[1767733724820,3.09045939,3235.8,3235.1,0.001]
[1767733724821,3.09045939,3235.8,3235.1,1.38185204]
[1767733726318,3.54366375,3235.8,3235.1,1.38185204]
[1767733726520,7.88166044,3235.8,3235.1,1.38185204]
[1767733726745,1.2475373,3235.7,3235.1,1.38185204]
[1767733728415,3.09061688,3235.6,3235.1,1.38185204]
[1767733729646,4.3380991,3235.7,3235.1,1.38185204]
[1767733730418,4.3380991,3235.7,3235.1,0.001]
[1767733730617,2.03571133,3235.6,3235.1,0.001]
[1767733730814,1.2475373,3235.5,3235.1,0.001]
[1767733732549,1.2475373,3235.4,3235.1,0.001]
[1767733733541,0.78817403,3235.6,3235.1,0.001]
[1767733733542,2.03571133,3235.6,3235.1,0.001]
[1767733734049,0.78817403,3235.6,3235.1,0.001]
[1767733734954,3.09033094,3235.9,3235.1,0.001]
[1767733734955,1.99070981,3236.1,3235.1,1.38185204]
[1767733735254,3.90023485,3236.0,3235.1,1.38185204]
[1767733736235,8.238007,3236.0,3235.1,1.38185204]
[1767733736628,5.14777215,3236.0,3235.1,1.38185204]
[1767733736952,5.14777215,3236.0,3235.2,1.38085204]
[1767733737350,8.238007,3236.0,3235.2,1.38085204]
[1767733737554,0.8238007,3235.9,3235.2,1.38085204]
[1767733737954,3.09023485,3236.0,3235.2,1.38085204]
[1767733738253,3.09209233,3236.2,3235.2,1.38085204]
[1767733738628,0.002,3236.2,3235.3,1.38085204]
[1767733739041,0.002,3236.2,3235.5,1.38085204]
[1767733741231,0.002,3236.2,3235.7,1.38085204]
[1767733741454,0.002,3236.2,3235.8,1.79734279]
[1767733743641,0.002,3236.2,3235.9,1.35908608]
[1767733743848,0.002,3236.6,3236.2,1.35908608]
[1767733745174,0.002,3236.9,3236.5,1.35908608]
[1767733751184,1.30744175,3236.9,3236.2,3.09003397]
[1767733751378,1.30744175,3236.9,3236.2,0.444912]
[1767733751580,1.30744175,3236.9,3236.2,1.80399808]
[1767733752661,1.30744175,3236.9,3236.2,4.89401505]
[1767733753190,4.39688367,3236.9,3236.2,1.80399808]
[1767733753363,4.39688367,3236.9,3236.3,0.48940902]
[1767733753569,4.39690477,3236.9,3236.2,1.80399808]
[1767733753788,4.39690477,3236.9,3236.2,1.35908608]
[1767733753987,4.39690477,3236.9,3236.5,0.001]
[1767733754186,0.002,3236.6,3236.5,0.001]
[1767733757011,1.30744175,3236.6,3236.5,0.001]
[1767733757710,0.002,3236.6,3236.5,0.001]
[1767733758082,1.30744175,3236.6,3236.5,0.001]
[1767733762184,0.002,3236.6,3236.5,0.001]
[1767733762622,0.002,3236.6,3235.9,1.35908608]
[1767733762623,4.70627473,3236.6,3235.9,1.35908608]
[1767733762792,4.70627473,3236.6,3235.4,0.001]
[1767733762793,1.30544175,3236.5,3235.6,1.35908608]
[1767733763619,4.39525561,3236.5,3235.8,1.35908608]
[1767733763787,1.30544175,3236.4,3235.8,1.35908608]
[1767733763980,1.82616731,3236.4,3235.8,1.35908608]
[1767733765030,4.91604972,3236.4,3235.8,1.35908608]
[1767733765545,6.17989678,3236.3,3235.8,1.35908608]
[1767733765833,6.17989678,3236.3,3236.1,0.001]
[1767733766034,6.17989678,3236.3,3235.5,1.35908608]
[1767733766336,6.17989678,3236.3,3235.4,3.09176135]
[1767733766337,1.82616731,3236.4,3235.8,1.35908608]
[1767733766503,3.08975745,3236.5,3235.8,1.35908608]
[1767733766908,5.20711956,3236.6,3235.8,1.35908608]
[1767733767536,0.002,3236.6,3235.9,1.35908608]
[1767733767712,0.002,3236.6,3236.1,1.35908608]
[1767733769139,0.002,3236.6,3236.2,1.35908608]
[1767733770512,0.002,3236.6,3235.9,1.35908608]
[1767733770708,0.002,3236.6,3236.0,1.35908608]
[1767733771436,1.38941898,3236.4,3235.8,1.36616624]
[1767733771636,1.38941898,3236.4,3235.6,1.36616624]
[1767733772824,1.38941898,3236.4,3235.4,1.36716624]
[1767733774234,1.38941898,3236.2,3235.4,1.36716624]
[1767733774432,2.14635056,3236.1,3235.4,1.36716624]
[1767733775227,1.38941898,3235.9,3235.4,0.001]
[1767733776452,3.09042586,3235.8,3235.4,0.001]
[1767733776756,3.09037073,3235.9,3235.4,0.001]
[1767733777545,3.09037073,3235.9,3235.7,0.001]
[1767733777742,3.09037073,3235.9,3235.4,0.001]
[1767733777743,0.69906726,3235.8,3235.4,0.001]
[1767733778750,0.81,3236.0,3235.4,1.36716624]
[1767733780946,0.81,3236.1,3235.5,1.36616624]
[1767733781553,3.90014122,3236.1,3235.5,1.36616624]
[1767733781733,3.09014122,3236.1,3235.5,1.36616624]
[1767733786054,6.18028244,3236.1,3235.5,1.36616624]
[1767733786255,0.69902824,3236.0,3235.5,1.36616624]
[1767733788074,3.78929869,3236.0,3235.5,1.36616624]
[1767733789547,3.78929727,3236.0,3235.5,1.36616624]
[1767733789749,3.78929727,3236.0,3235.7,0.001]
[1767733790478,3.79129727,3236.0,3235.7,0.001]
[1767733790775,0.70102824,3236.0,3235.7,0.001]
[1767733790972,0.70102824,3236.0,3235.7,1.36716624]
[1767733791176,0.002,3236.0,3235.7,1.36716624]
[1767733793779,0.002,3236.0,3235.7,0.001]
[1767733806331,0.002,3236.0,3235.7,1.40228232]
[1767733806516,3.09171115,3236.6,3235.9,1.40128232]
[1767733806824,0.81,3236.5,3235.9,1.40128232]
[1767733807434,3.09171115,3236.6,3236.0,1.48238028]
[1767733807435,0.002,3236.6,3236.0,1.48238028]
[1767733807632,0.812,3236.6,3236.0,1.48238028]
[1767733807942,0.002,3236.6,3236.0,1.48238028]
[1767733808819,0.002,3236.6,3235.9,6.62992079]
[1767733808820,0.002,3236.6,3236.2,1.48238028]
[1767733813448,1.43040496,3236.6,3235.9,0.44926963]
[1767733813648,1.73955272,3236.6,3235.4,0.001]
[1767733814018,1.73955272,3236.6,3236.0,0.001]
[1767733814220,1.42840496,3236.2,3235.4,0.001]
[1767733814419,2.23840496,3236.1,3235.4,0.001]
[1767733814742,2.46244546,3236.1,3235.4,0.001]
[1767733815831,3.09023485,3236.0,3235.4,0.001]
[1767733816536,4.51863981,3236.0,3235.4,0.001]
[1767733818723,1.42840496,3236.0,3235.4,0.001]
[1767733820350,4.51865099,3236.0,3235.4,0.001]
[1767733820549,5.38292461,3236.0,3235.4,0.001]
[1767733822055,0.002,3236.3,3235.6,1.48238028]
[1767733822361,0.002,3236.3,3235.8,1.48238028]
[1767733822562,0.002,3236.3,3236.0,3.109294]
[1767733823028,0.002,3236.3,3236.1,1.48238028]
[1767733823640,0.002,3236.3,3236.0,1.50143943]
[1767733824031,1.43040496,3236.3,3236.0,1.50143943]
[1767733824862,1.42840496,3236.2,3235.4,0.001]
[1767733825025,1.42840496,3236.0,3235.4,0.001]
[1767733825926,1.42840496,3236.0,3235.7,0.001]
[1767733826345,1.43040496,3236.0,3235.7,0.001]
[1767733827651,1.42840496,3235.9,3235.7,0.001]
[1767733828740,1.42840496,3235.9,3235.1,4.57346101]
[1767733829029,1.42840496,3235.9,3235.1,5.33993429]
[1767733830562,1.42840496,3235.9,3235.2,1.48238028]
[1767733831361,4.51873871,3235.9,3235.2,1.48238028]
[1767733831866,1.42840496,3235.9,3235.2,1.48238028]
[1767733832047,1.42840496,3235.9,3235.2,4.57332795]
[1767733832951,4.51875477,3235.9,3235.2,4.57332795]
[1767733833350,4.51875477,3235.9,3235.2,1.48238028]
[1767733833643,4.51728687,3235.9,3235.2,1.48238028]
[1767733833845,1.4644358,3235.8,3235.2,1.48238028]
[1767733835164,1.4644358,3235.8,3235.2,4.57334423]
[1767733835369,1.4644358,3235.8,3235.2,5.41643179]
[1767733835755,1.4664358,3236.0,3235.2,5.41643179]
[1767733835936,0.002,3236.3,3235.8,1.42829523]
[1767733836143,0.002,3236.3,3235.9,4.51862558]
[1767733836465,0.002,3236.3,3235.9,7.60895593]
[1767733836773,0.002,3236.3,3236.0,1.42829523]
[1767733837565,1.4664358,3236.3,3235.9,0.76089559]
[1767733837867,1.4664358,3236.3,3235.7,4.51876792]
[1767733838442,1.4664358,3236.3,3235.8,3.09042532]
[1767733839304,0.002,3236.3,3235.8,3.09042532]
[1767733839469,0.002,3236.3,3235.9,1.42829523]
[1767733844093,0.002,3236.3,3235.8,3.09042532]
[1767733844248,0.002,3236.3,3235.8,0.76093073]
[1767733845059,0.002,3236.3,3235.8,3.85135407]
[1767733845969,0.002,3236.3,3235.8,3.85126636]
[1767733846548,0.002,3236.3,3235.8,5.27956159]
[1767733847064,0.002,3236.3,3235.9,1.42829523]
[1767733847271,0.002,3236.3,3236.0,1.42829523]
[1767733847874,0.002,3236.3,3235.9,0.83699875]
[1767733848478,0.002,3236.3,3235.9,3.92731252]
[1767733848975,0.002,3236.3,3236.0,1.42829523]
[1767733849880,0.002,3236.3,3235.9,3.92731252]
[1767733850871,0.002,3236.0,3235.9,5.35560775]
[1767733851667,0.002,3236.0,3235.9,2.26529398]
[1767733851857,0.002,3236.0,3235.9,0.83699875]
[1767733852061,0.002,3236.0,3235.7,3.09047144]
[1767733852261,0.002,3236.0,3235.7,4.51876667]
[1767733852490,0.002,3236.0,3235.8,3.0904087]
[1767733852867,0.002,3236.0,3235.9,1.42829523]
[1767733853985,0.002,3236.0,3235.8,6.18083456]
[1767733854303,0.002,3236.0,3235.8,6.94174754]
[1767733854988,0.002,3236.0,3235.8,8.37004277]
[1767733855158,0.002,3236.0,3235.9,1.42829523]
[1767733856089,0.002,3236.0,3235.8,3.85132168]
[1767733857082,0.002,3236.0,3235.9,1.42829523]
[1767733857792,0.002,3236.0,3235.8,1.42613184]
[1767733857987,0.002,3236.0,3235.5,0.001]
[1767733857988,1.47545655,3236.0,3235.5,0.001]
[1767733860276,0.45656005,3235.9,3235.5,0.001]
[1767733860461,1.9300166,3235.9,3235.5,0.001]
[1767733861091,0.45656005,3235.9,3235.5,0.001]
[1767733862067,1.54033948,3235.8,3235.5,0.001]
[1767733862968,0.45656005,3235.9,3235.5,0.001]
[1767733863188,0.5089145,3235.8,3235.5,0.001]
[1767733864186,1.54033948,3235.8,3235.5,0.001]
[1767733865089,1.54233948,3236.0,3235.5,0.001]
[1767733865766,4.63258066,3236.0,3235.5,0.001]
[1767733866065,4.63258066,3236.0,3234.9,0.81]
[1767733866066,1.54033948,3235.8,3234.9,3.09126059]
[1767733866687,1.54033948,3235.6,3234.8,3.09134642]
[1767733866889,1.54033948,3235.4,3234.6,1.43312014]
[1767733867095,1.54033948,3235.4,3234.6,3.09155962]
[1767733868096,1.54033948,3235.4,3234.4,6.18351566]
[1767733868389,1.54033948,3235.3,3234.4,6.18351566]
[1767733868994,1.54033948,3235.3,3234.5,1.43312014]
[1767733869196,2.0269585,3235.3,3234.5,1.43312014]
[1767733869600,1.54033948,3235.2,3234.6,3.09157237]
[1767733870591,1.54033948,3235.2,3234.5,3.09162397]
[1767733872095,1.54033948,3235.2,3234.1,7.6172208]
[1767733872294,1.54033948,3235.2,3234.2,1.43312014]
[1767733872490,1.54033948,3235.1,3234.2,1.43312014]
[1767733874271,1.54033948,3235.1,3234.5,0.001]
[1767733875103,2.05212064,3235.2,3234.5,1.43412014]
[1767733875483,1.54033948,3235.1,3234.5,3.09259121]
[1767733875798,1.54033948,3235.1,3234.5,0.001]
[1767733875977,1.74555154,3235.0,3234.5,0.001]
[1767733877105,0.20521206,3235.0,3234.5,1.43412014]
[1767733877895,1.74555154,3235.0,3234.5,0.001]
[1767733879200,0.20521206,3235.0,3234.5,1.43412014]
[1767733879984,1.74555154,3235.0,3234.5,0.001]
[1767733881085,0.20521206,3235.0,3234.5,0.001]
[1767733881287,0.20521206,3235.0,3234.5,1.43412014]
[1767733882096,0.20521206,3235.0,3234.5,4.525786]
[1767733882401,1.74555154,3235.0,3234.5,0.001]
[1767733882911,1.77537343,3235.5,3234.6,1.43312014]
[1767733883078,1.54033948,3235.5,3234.8,1.43312014]
[1767733883404,0.812,3235.7,3234.8,1.43312014]
[1767733883705,0.002,3235.7,3234.8,1.43312014]
[1767733884105,3.09252371,3235.7,3234.9,3.09128566]
[1767733884321,3.09252371,3235.7,3235.0,1.43312014]
[1767733884602,1.54233948,3235.7,3234.9,7.61569146]
[1767733884787,1.54233948,3235.7,3234.9,6.94414047]
[1767733885386,0.002,3235.7,3234.9,6.94414047]
[1767733885579,0.002,3235.7,3235.0,1.43312014]
[1767733886490,1.54233948,3235.7,3235.0,3.09115777]
[1767733887617,0.002,3235.7,3235.1,1.43312014]
[1767733888416,0.002,3235.7,3235.1,4.52417303]
[1767733888583,1.54233948,3235.7,3235.1,3.92875133]
[1767733889614,0.002,3235.7,3235.2,1.43312014]
[1767733890484,1.54233948,3235.7,3234.8,1.43412014]
[1767733891009,1.54233948,3235.7,3235.2,1.43312014]
[1767733891010,0.002,3235.7,3235.2,1.43312014]
[1767733891879,0.002,3236.0,3235.7,1.45033118]
[1767733892077,0.002,3236.3,3235.9,1.45033118]
[1767733892487,0.002,3236.3,3235.6,1.45033118]
[1767733892691,0.002,3236.3,3235.8,1.45033118]
[1767733894810,0.002,3236.3,3235.9,7.63099188]
[1767733895705,0.002,3236.3,3236.0,1.45033118]
[1767733896085,0.002,3236.3,3236.0,0.45033118]
[1767733896517,0.002,3236.3,3235.9,3.09033035]
[1767733896694,0.002,3236.3,3235.8,3.09034263]
[1767733897014,1.48383732,3236.3,3235.8,3.09034263]
[1767733897514,0.002,3236.3,3235.8,3.09034263]
[1767733897993,1.48383732,3236.3,3235.8,3.09034263]
[1767733898195,1.48383732,3236.3,3235.7,3.09047696]
[1767733898789,0.002,3236.0,3235.5,6.1814009]
[1767733899005,0.002,3236.0,3235.6,0.69914009]
[1767733899695,0.002,3236.0,3235.6,1.78850127]
[1767733900710,0.002,3236.0,3235.6,0.69914009]
[1767733901011,0.002,3236.0,3235.6,6.88032404]
[1767733901421,0.002,3236.0,3235.6,7.97031769]
[1767733901624,0.002,3236.3,3235.8,1.08999365]
[1767733902127,0.002,3236.3,3235.7,1.77832288]
[1767733902330,0.002,3236.3,3235.8,1.09029048]
[1767733903217,0.002,3236.3,3236.0,1.09057978]
[1767733904124,0.002,3236.3,3235.9,6.1806607]
[1767733904304,0.002,3236.3,3235.9,7.46880341]
[1767733904628,1.48183732,3236.8,3236.1,1.45033118]
[1767733904918,1.48183732,3236.8,3236.0,4.92186861]
[1767733905326,0.002,3236.9,3236.2,7.63041892]
[1767733905623,0.002,3236.9,3236.2,8.88564767]
[1767733905992,0.002,3236.9,3236.3,1.45033118]
[1767733906203,0.002,3237.2,3236.7,1.45033118]
[1767733906611,1e-08,3237.6,3237.0,1.45033118]
[1767733906790,1.44392898,3237.9,3237.1,1.45033118]
[1767733907013,1.44392898,3237.9,3237.1,0.64658357]
[1767733907212,1.44392898,3237.9,3237.0,4.92186861]
[1767733907416,1.44392898,3237.9,3237.1,3.08918476]
[1767733908225,1.44392898,3237.9,3237.1,4.53951594]
[1767733908436,3.09014775,3238.2,3237.1,1.54396706]
[1767733908437,0.002,3238.2,3237.1,1.54396706]
[1767733908752,0.002,3239.1,3238.0,4.92186861]
[1767733908753,1.48183732,3238.9,3238.0,4.92186861]
[1767733908911,1.48183732,3238.9,3238.0,5.73186861]
[1767733909455,0.002,3239.1,3238.2,1.45033118]
[1767733909638,0.002,3239.7,3239.2,6.37219979]
[1767733909841,0.002,3239.7,3239.3,0.63721998]
[1767733910130,0.002,3239.7,3239.2,1.45033118]
[1767733910338,4.57054361,3239.7,3238.7,0.90363588]
[1767733910554,4.57054361,3239.7,3238.9,0.09363588]
[1767733910555,0.002,3239.7,3238.9,0.09363588]
[1767733910715,0.002,3240.1,3239.5,0.09363588]
[1767733910916,0.002,3240.1,3239.6,0.15439671]
[1767733911343,0.002,3240.1,3239.6,3.24118007]
[1767733911646,0.002,3240.1,3239.6,0.15439671]
[1767733911822,0.002,3240.1,3239.0,1.45033118]
[1767733912016,0.002,3240.1,3239.3,0.81]
[1767733912214,1.48383732,3240.1,3238.9,0.09363588]
[1767733912415,1.48383732,3240.1,3239.0,0.81]
[1767733912659,1.48383732,3240.1,3239.0,3.89735756]
[1767733913148,1.48383732,3240.1,3239.0,0.81]
[1767733913354,1.48383732,3240.1,3239.0,4.44149614]
[1767733913521,1.48383732,3240.1,3239.0,1.35415259]
[1767733913522,1.48183732,3239.9,3239.0,1.35415259]
[1767733913844,1.48183732,3239.9,3239.0,0.81]
[1767733914048,1.48183732,3239.9,3239.0,3.89736193]
[1767733914471,1.48183732,3239.9,3239.0,0.81]
[1767733914874,1.48183732,3239.9,3239.0,3.8973704]
[1767733915068,1.48183732,3239.9,3239.0,4.60522724]
[1767733915265,1.48183732,3239.9,3239.0,1.51785684]
[1767733915466,1.48183732,3239.7,3239.0,0.81]
[1767733915868,1.48183732,3239.7,3238.3,4.5383434]
[1767733916072,1.48183732,3239.7,3238.6,3.08774702]
[1767733916580,1.48183732,3239.7,3238.3,0.809]
[1767733916781,0.002,3240.1,3238.9,3.18110259]
[1767733916782,7.65467682,3240.0,3238.9,3.18110259]
[1767733917090,1.48183732,3239.8,3238.7,3.89665614]
[1767733917252,1.48183732,3239.8,3239.0,3.08736969]
[1767733917682,1.48183732,3239.8,3238.8,3.08756329]
[1767733917886,3.85224992,3239.9,3238.9,0.98107427]
[1767733918045,0.9895261,3239.8,3238.8,3.78598544]
[1767733919167,0.9895261,3239.8,3238.8,6.87354873]
[1767733919388,0.002,3240.1,3239.6,0.98107427]
[1767733919560,1.65919169,3243.8,3240.5,1.07471015]
[1767733919561,0.9895261,3241.8,3240.5,1.07471015]
[1767733919876,0.9895261,3241.6,3240.7,0.09363588]
[1767733920187,0.9895261,3241.6,3240.4,3.08602006]
[1767733920405,0.9895261,3241.6,3240.3,0.09363588]
[1767733920406,0.9895261,3241.6,3240.7,0.09363588]
[1767733920608,6.95158037,3244.3,3242.0,0.09363588]
[1767733920609,0.9895261,3243.4,3242.0,0.09363588]
[1767733920894,0.71557046,3243.3,3242.1,1.88371015]
[1767733921074,0.9895261,3243.2,3242.1,0.809]
[1767733921249,0.71557046,3243.3,3242.1,0.809]
[1767733921681,4.0120366,3243.2,3242.1,0.809]
[1767733921883,4.0120366,3243.2,3241.6,0.1604321]
[1767733921884,0.92866216,3243.0,3241.6,0.1604321]
[1767733922532,0.92866216,3242.8,3241.6,0.1604321]
[1767733923590,3.08318289,3243.5,3241.6,0.1604321]
[1767733923592,0.92866216,3245.2,3243.7,0.09363588]
[1767733923920,0.96683551,3246.3,3243.7,0.09363588]
[1767733923921,0.96683551,3246.3,3245.6,0.09363588]
[1767733924120,0.96683551,3246.3,3245.1,1.02070143]
[1767733924122,0.96683551,3246.3,3245.5,0.809]
[1767733924695,6.15972158,3246.9,3245.1,0.09363588]
[1767733924918,6.15972158,3246.9,3245.3,0.09363588]
[1767733925304,6.15972158,3246.9,3244.9,1.02070143]
[1767733925504,6.15972158,3246.9,3245.0,0.809]
[1767733925716,0.92866216,3247.7,3245.6,0.92706555]
[1767733925916,0.92866216,3247.7,3245.2,0.09363588]
[1767733925917,0.92866216,3247.7,3245.7,0.90263588]
[1767733926118,0.92866216,3247.7,3245.8,0.809]
[1767733926420,0.92866216,3247.7,3245.5,0.92706555]
[1767733926421,0.92866216,3247.7,3245.9,0.90263588]
[1767733926728,0.92866216,3247.7,3245.9,1.73606555]
[1767733926946,0.92866216,3247.7,3245.9,1.90967211]
[1767733927112,0.92866216,3247.7,3246.0,0.809]
[1767733927310,0.92866216,3247.7,3245.4,0.92706555]
[1767733927521,9.23682281,3247.9,3245.8,0.92706555]
[1767733927522,3.07891252,3247.9,3245.8,0.92706555]
[1767733927723,3.07796484,3248.9,3247.3,0.92706555]
[1767733927941,3.07796484,3248.9,3247.2,0.09363588]
[1767733927942,0.0019983,3249.0,3248.2,0.09363588]
[1767733928244,0.61836525,3250.8,3248.2,0.09363588]
[1767733928245,0.808,3251.4,3249.0,0.92706555]
[1767733928419,0.808,3251.4,3248.7,0.09363588]
[1767733928420,3.16815961,3252.6,3248.5,0.09363588]
[1767733928421,1.53717061,3253.4,3249.7,0.09363588]
[1767733928624,0.09363588,3252.3,3249.5,0.92706555]
[1767733928819,0.09363588,3252.5,3249.8,1.02070143]
[1767733928820,0.808,3252.2,3249.8,1.02070143]
[1767733929036,0.808,3252.2,3250.0,0.92706555]
[1767733929201,0.808,3252.2,3248.7,0.09363588]
[1767733929202,0.92866216,3251.5,3248.5,0.92706555]
[1767733929407,0.09363588,3251.6,3248.6,0.09363588]
[1767733929408,0.92866216,3251.3,3248.6,0.09363588]